fUSD/lending_fUSD_20240222
["ID","MTS","AMOUNT","RATE_DAILY","PERIOD"]
[314902407,1708625552683,-1635.09,0.00034246,4]
[314902408,1708625552692,-2609.74,0.00034246,4]
[314902409,1708625552702,-3610.42,0.00034246,4]
[314902410,1708625552712,-923.8,0.00034246,4]
[314902411,1708625552721,-1343.66,0.00034246,4]
[314902412,1708625552732,-1380.71,0.00034246,4]
[314902413,1708625552742,-1594.46,0.00034246,4]
[314902414,1708625552752,-199.75253695,0.0003429,7]
[314902415,1708625552761,-295.507495,0.00034293,2]
[314902416,1708625552771,-308.542885,0.00034293,2]
[314902417,1708625552780,-161.0,0.00034321,2]
[314902418,1708625552789,-152.26171501,0.00034321,2]
[314902419,1708625552799,-8403.2783721,0.00034359,2]
[314902420,1708625552808,-47090.4396358,0.00034359,2]
[314902421,1708625552818,-152.0,0.00034381,5]
[314902422,1708625552827,-500.0,0.00034383,4]
[314902423,1708625552837,-500.0,0.00034383,4]
[314902424,1708625552846,-500.0,0.00034383,4]
[314902425,1708625552856,-500.0,0.00034383,4]
[314902426,1708625552866,-500.0,0.00034383,4]
[314902427,1708625552875,-500.0,0.00034383,4]
[314902428,1708625552889,-291.43707961,0.00034383,4]
[314902429,1708625552898,-250.19864167,0.00034383,4]
[314902430,1708625552907,-578.25423683,0.00034383,4]
[314902431,1708625552917,-500.0,0.00034383,4]
[314902432,1708625552926,-500.0,0.00034383,2]
[314902433,1708625552935,-514.99,0.00034383,4]
[314902434,1708625552944,-447.55056443,0.00034383,4]
[314902435,1708625552954,-555.79,0.00034383,4]
[314902436,1708625552963,-500.0,0.00034383,4]
[314902437,1708625552974,-500.0,0.00034383,4]
[314902438,1708625552984,-641.75,0.00034383,4]
[314902439,1708625552993,-297.62228462,0.00034383,4]
[314902440,1708625553002,-750.74,0.00034383,4]
[314902441,1708625553012,-500.0,0.00034383,4]
[314902442,1708625553022,-500.0,0.00034383,4]
[314902443,1708625553031,-500.0,0.00034383,4]
[314902444,1708625553040,-500.0,0.00034383,4]
[314902445,1708625553050,-542.31,0.00034383,4]
[314902446,1708625553059,-500.0,0.00034383,4]
[314902447,1708625553069,-621.21,0.00034383,4]
[314902448,1708625553078,-500.0,0.00034383,4]
[314902449,1708625553087,-500.0,0.00034383,4]
[314902450,1708625553096,-551.07,0.00034383,4]
[314902451,1708625553105,-744.09,0.00034383,4]
[314902452,1708625553115,-500.0,0.00034383,4]
[314902453,1708625553124,-500.0,0.00034383,4]
[314902454,1708625553133,-500.0,0.00034383,4]
[314902455,1708625553143,-573.53,0.00034383,4]
[314902456,1708625553152,-500.0,0.00034383,4]
[314902457,1708625553161,-500.0,0.00034383,4]
[314902458,1708625553170,-500.0,0.00034383,4]
[314902459,1708625553179,-500.0,0.00034383,4]
[314902460,1708625553189,-514.78490075,0.00034383,4]
[314902461,1708625553198,-500.0,0.00034383,4]
[314902462,1708625553208,-500.0,0.00034383,4]
[314902463,1708625553217,-524.07,0.00034383,4]
[314902464,1708625553227,-951.85,0.00034383,4]
[314902465,1708625553236,-500.0,0.00034383,4]
[314902466,1708625553245,-926.28,0.00034383,4]
[314902467,1708625553254,-529.22,0.00034383,4]
[314902468,1708625553263,-500.0,0.00034383,4]
[314902469,1708625553273,-744.11,0.00034383,4]
[314902470,1708625553282,-500.0,0.00034383,4]
[314902471,1708625553291,-500.0,0.00034383,4]
[314902472,1708625553300,-1143.73,0.00034383,4]
[314902473,1708625553309,-500.0,0.00034383,4]
[314902474,1708625553318,-500.0,0.00034383,4]
[314902475,1708625553328,-779.36,0.00034383,4]
[314902476,1708625553338,-635.41,0.00034383,4]
[314902477,1708625553348,-555.19,0.00034383,4]
[314902478,1708625553359,-500.0,0.00034383,4]
[314902479,1708625553368,-500.0,0.00034383,4]
[314902480,1708625553378,-822.26,0.00034383,4]
[314902481,1708625553387,-769.66,0.00034383,4]
[314902482,1708625553397,-255.81497764,0.00034383,4]
[314902483,1708625553407,-500.0,0.00034383,4]
[314902484,1708625553417,-889.62,0.00034383,4]
[314902485,1708625553426,-634.08,0.00034383,4]
[314902486,1708625553436,-500.0,0.00034383,4]
[314902487,1708625553445,-567.01,0.00034383,4]
[314902488,1708625553455,-721.11,0.00034383,4]
[314902489,1708625553464,-653.98,0.00034383,4]
[314902490,1708625553473,-659.59,0.00034383,4]
[314902491,1708625553486,-951.61,0.00034383,4]
[314902492,1708625553495,-627.93,0.00034383,4]
[314902493,1708625553505,-677.11,0.00034383,4]
[314902494,1708625553514,-668.92,0.00034383,4]
[314902495,1708625553524,-746.18,0.00034383,4]
[314902496,1708625553533,-655.97,0.00034383,4]
[314902497,1708625553543,-500.0,0.00034383,4]
[314902498,1708625553552,-944.62,0.00034383,4]
[314902499,1708625553562,-1016.3,0.00034383,4]
[314902500,1708625553571,-500.0,0.00034383,4]
[314902501,1708625553580,-500.0,0.00034383,4]
[314902502,1708625553589,-500.0,0.00034383,4]
[314902503,1708625553599,-804.18,0.00034383,4]
[314902504,1708625553608,-535.66,0.00034383,4]
[314902505,1708625553617,-936.27,0.00034383,4]
[314902506,1708625553626,-500.0,0.00034383,4]
[314902507,1708625553636,-573.6,0.00034383,4]
[314902508,1708625553645,-573.73,0.00034383,4]
[314902509,1708625553655,-906.98,0.00034383,4]
[314902510,1708625553664,-625.48,0.00034383,4]
[314902511,1708625553673,-619.25,0.00034383,4]
[314902512,1708625553683,-802.24,0.00034383,4]
[314902513,1708625553692,-553.85,0.00034383,4]
[314902514,1708625553702,-951.64,0.00034383,4]
[314902515,1708625553712,-500.0,0.00034383,4]
[314902516,1708625553722,-694.67,0.00034383,4]
[314902517,1708625553732,-991.06,0.00034383,4]
[314902518,1708625553742,-676.95,0.00034383,4]
[314902519,1708625553752,-500.0,0.00034383,4]
[314902520,1708625553763,-764.63,0.00034383,4]
[314902521,1708625553772,-508.78,0.00034383,4]
[314902522,1708625553782,-500.0,0.00034383,4]
[314902523,1708625553792,-802.5,0.00034383,4]
[314902524,1708625553803,-664.95,0.00034383,4]
[314902525,1708625553813,-692.13,0.00034383,4]
[314902526,1708625553822,-632.57,0.00034383,4]
[314902527,1708625553832,-509.92,0.00034383,4]
[314902528,1708625553842,-500.0,0.00034383,4]
[314902529,1708625553852,-607.02,0.00034383,4]
[314902530,1708625553862,-792.22,0.00034383,4]
[314902531,1708625553872,-500.0,0.00034383,4]
[314902532,1708625553882,-1057.84,0.00034383,4]
[314902533,1708625553895,-500.0,0.00034383,4]
[314902534,1708625553908,-967.9,0.00034383,4]
[314902535,1708625553918,-1015.71,0.00034383,4]
[314902536,1708625553927,-267.44,0.00034383,4]
[314902537,1708625553938,-500.0,0.00034383,4]
[314902538,1708625553948,-500.0,0.00034383,4]
[314902539,1708625553958,-1057.91,0.00034383,4]
[314902540,1708625553968,-1562.84,0.00034383,4]
[314902541,1708625553978,-908.7,0.00034383,4]
[314902542,1708625553989,-574.22,0.00034383,4]
[314902543,1708625553998,-1195.95,0.00034383,4]
[314902544,1708625554007,-711.8,0.00034383,4]
[314902545,1708625554017,-500.0,0.00034383,4]
[314902546,1708625554027,-690.36,0.00034383,4]
[314902547,1708625554036,-582.2,0.00034383,4]
[314902548,1708625554139,-623.27,0.00034383,4]
[314902549,1708625554149,-643.93,0.00034383,4]
[314902550,1708625554158,-808.11,0.00034383,4]
[314902551,1708625554168,-500.0,0.00034383,4]
[314902552,1708625554177,-955.15,0.00034383,4]
[314902553,1708625554187,-500.0,0.00034383,2]
[314902554,1708625554196,-520.41,0.00034383,4]
[314902555,1708625554206,-500.0,0.00034383,4]
[314902556,1708625554216,-642.76,0.00034383,4]
[314902557,1708625554225,-500.0,0.00034383,4]
[314902558,1708625554235,-500.0,0.00034383,4]
[314902559,1708625554244,-500.0,0.00034383,4]
[314902560,1708625554254,-814.72,0.00034383,4]
[314902561,1708625554263,-763.81,0.00034383,4]
[314902562,1708625554272,-595.79,0.00034383,4]
[314902563,1708625554281,-920.28,0.00034383,4]
[314902564,1708625554291,-616.74,0.00034383,4]
[314902565,1708625554300,-704.13,0.00034383,4]
[314902566,1708625554310,-693.29,0.00034383,4]
[314902567,1708625554319,-500.0,0.00034383,4]
[314902568,1708625554329,-970.8,0.00034383,4]
[314902569,1708625554338,-523.23,0.00034383,4]
[314902570,1708625554348,-569.97,0.00034383,4]
[314902571,1708625554358,-552.1,0.00034383,4]
[314902572,1708625554367,-546.34,0.00034383,4]
[314902573,1708625554376,-500.0,0.00034383,4]
[314902574,1708625554385,-597.14,0.00034383,4]
[314902575,1708625554394,-936.39,0.00034383,4]
[314902576,1708625554404,-500.0,0.00034383,4]
[314902577,1708625554413,-500.0,0.00034383,4]
[314902578,1708625554423,-1085.60665548,0.00034383,7]
[314902579,1708625554433,-500.0,0.00034383,4]
[314902580,1708625554443,-1322.67,0.00034383,4]
[314902581,1708625554453,-513.58,0.00034383,4]
[314902582,1708625554463,-500.0,0.00034383,4]
[314902583,1708625554472,-500.0,0.00034383,4]
[314902584,1708625554482,-500.0,0.00034383,4]
[314902585,1708625554492,-652.66,0.00034383,4]
[314902586,1708625554501,-905.48,0.00034383,4]
[314902587,1708625554510,-365.49840708,0.00034383,4]
[314902588,1708625554519,-902.91,0.00034383,4]
[314902589,1708625554529,-500.0,0.00034383,4]
[314902590,1708625554538,-577.69,0.00034383,4]
[314902591,1708625554547,-500.0,0.00034383,4]
[314902592,1708625554556,-1566.96,0.00034383,4]
[314902593,1708625554566,-500.0,0.00034383,4]
[314902594,1708625554575,-885.89,0.00034383,4]
[314902595,1708625554584,-567.92,0.00034383,4]
[314902596,1708625554594,-642.58,0.00034383,4]
[314902597,1708625554603,-851.67,0.00034383,4]
[314902598,1708625554612,-500.0,0.00034383,2]
[314902599,1708625554621,-572.75,0.00034383,4]
[314902600,1708625554630,-583.46,0.00034383,4]
[314902601,1708625554640,-1131.89,0.00034383,4]
[314902602,1708625554649,-500.0,0.00034383,4]
[314902603,1708625554658,-500.0,0.00034383,4]
[314902604,1708625554667,-568.65,0.00034383,4]
[314902605,1708625554677,-500.0,0.00034383,4]
[314902606,1708625554686,-1313.43,0.00034383,4]
[314902607,1708625554695,-3828.9,0.00034383,4]
[314902608,1708625554705,-1312.47,0.00034383,4]
[314902609,1708625554714,-500.0,0.00034383,4]
[314902610,1708625554723,-637.56,0.00034383,4]
[314902611,1708625554733,-500.0,0.00034383,4]
[314902612,1708625554743,-771.01,0.00034383,4]
[314902613,1708625554752,-670.32,0.00034383,4]
[314902614,1708625554761,-905.48,0.00034383,4]
[314902615,1708625554770,-587.38,0.00034383,4]
[314902616,1708625554780,-621.70738682,0.00034383,4]
[314902617,1708625554789,-500.0,0.00034383,4]
[314902618,1708625554798,-500.0,0.00034383,4]
[314902619,1708625554807,-500.0,0.00034383,4]
[314902620,1708625554816,-387.34309085,0.00034383,4]
[314902621,1708625554825,-515.39290728,0.00034383,4]
[314902622,1708625554834,-500.0,0.00034383,4]
[314902623,1708625554845,-1115.25,0.00034383,4]
[314902624,1708625554854,-500.0,0.00034383,4]
[314902625,1708625554863,-617.27,0.00034383,4]
[314902626,1708625554873,-1239.94,0.00034383,4]
[314902627,1708625554884,-920.63,0.00034383,4]
[314902628,1708625554897,-1030.29,0.00034383,4]
[314902629,1708625554906,-500.0,0.00034383,4]
[314902630,1708625554915,-500.0,0.00034383,4]
[314902631,1708625554926,-799.98,0.00034383,4]
[314902632,1708625554936,-728.76,0.00034383,4]
[314902633,1708625554945,-500.0,0.00034383,4]
[314902634,1708625554954,-741.55,0.00034383,4]
[314902635,1708625554964,-617.56,0.00034383,4]
[314902636,1708625554974,-664.22,0.00034383,4]
[314902637,1708625554985,-582.0,0.00034383,4]
[314902638,1708625554995,-500.0,0.00034383,4]
[314902639,1708625555004,-541.78,0.00034383,4]
[314902640,1708625555014,-764.35,0.00034383,4]
[314902641,1708625555023,-500.0,0.00034383,4]
[314902642,1708625555033,-1242.24,0.00034383,4]
[314902643,1708625555043,-1041.1,0.00034383,4]
[314902644,1708625555052,-166.21670792,0.00034383,4]
[314902645,1708625555062,-1494.6,0.00034383,4]
[314902646,1708625555072,-500.0,0.00034383,4]
[314902647,1708625555082,-500.0,0.00034383,4]
[314902648,1708625555091,-983.44,0.00034383,4]
[314902649,1708625555101,-871.52,0.00034383,4]
[314902650,1708625555111,-500.0,0.00034383,4]
[314902651,1708625555121,-937.84,0.00034383,4]
[314902652,1708625555130,-500.0,0.00034383,4]
[314902653,1708625555140,-940.94,0.00034383,4]
[314902654,1708625555149,-500.0,0.00034383,4]
[314902655,1708625555159,-900.68,0.00034383,4]
[314902656,1708625555168,-988.42,0.00034383,4]
[314902657,1708625555182,-1267.73,0.00034383,4]
[314902658,1708625555191,-598.66,0.00034383,4]
[314902659,1708625555201,-1407.88,0.00034383,4]
[314902660,1708625555211,-593.03820152,0.00034383,4]
[314902661,1708625555220,-500.0,0.00034383,4]
[314902662,1708625555230,-1015.51,0.00034383,4]
[314902663,1708625555240,-500.0,0.00034383,4]
[314902664,1708625555249,-500.0,0.00034383,4]
[314902665,1708625555259,-824.67,0.00034383,4]
[314902666,1708625555269,-1044.83,0.00034383,4]
[314902667,1708625555278,-625.15,0.00034383,4]
[314902668,1708625555288,-848.25,0.00034383,4]
[314902669,1708625555297,-715.27,0.00034383,4]
[314902670,1708625555307,-500.0,0.00034383,4]
[314902671,1708625555317,-500.0,0.00034383,4]
[314902672,1708625555327,-979.83,0.00034383,4]
[314902673,1708625555338,-500.0,0.00034383,4]
[314902674,1708625555349,-1292.8,0.00034383,4]
[314902675,1708625555359,-651.21,0.00034383,4]
[314902676,1708625555369,-709.91,0.00034383,4]
[314902677,1708625555379,-579.59,0.00034383,4]
[314902678,1708625555389,-1259.45,0.00034383,4]
[314902679,1708625555398,-695.7,0.00034383,4]
[314902680,1708625555408,-972.69,0.00034383,4]
[314902681,1708625555418,-500.0,0.00034383,4]
[314902682,1708625555428,-500.0,0.00034383,4]
[314902683,1708625555438,-1106.66,0.00034383,4]
[314902684,1708625555448,-500.0,0.00034383,4]
[314902685,1708625555457,-1263.76,0.00034383,4]
[314902686,1708625555468,-500.0,0.00034383,4]
[314902687,1708625555478,-1595.37,0.00034383,4]
[314902688,1708625555488,-535.25,0.00034383,4]
[314902689,1708625555498,-1321.09,0.00034383,4]
[314902690,1708625555508,-577.78147346,0.00034383,4]
[314902691,1708625555518,-841.52,0.00034383,4]
[314902692,1708625555527,-593.4,0.00034383,4]
[314902693,1708625555538,-1083.33,0.00034383,4]
[314902694,1708625555548,-1312.31,0.00034383,4]
[314902695,1708625555558,-1322.97,0.00034383,4]
[314902696,1708625555568,-6861.46,0.00034383,4]
[314902697,1708625555578,-500.0,0.00034383,4]
[314902698,1708625555588,-7508.74,0.00034383,4]
[314902699,1708625555597,-500.0,0.00034383,4]
[314902700,1708625555607,-2188.57,0.00034383,4]
[314902701,1708625555617,-562.13295209,0.00034383,4]
[314902702,1708625555626,-640.5,0.00034383,4]
[314902703,1708625555637,-1556.17,0.00034383,2]
[314902704,1708625555647,-931.24,0.00034383,4]
[314902705,1708625555657,-1521.19,0.00034383,4]
[314902706,1708625555667,-579.67,0.00034383,4]
[314902707,1708625555677,-1367.32,0.00034383,4]
[314902708,1708625555687,-500.0,0.00034383,4]
[314902709,1708625555696,-500.0,0.00034383,4]
[314902710,1708625555706,-3289.02,0.00034383,4]
[314902711,1708625555715,-1435.75,0.00034383,4]
[314902712,1708625555725,-670.88,0.00034383,4]
[314902713,1708625555735,-7764.94,0.00034383,4]
[314902714,1708625555745,-1463.74,0.00034383,4]
[314902715,1708625555754,-500.0,0.00034383,4]
[314902716,1708625555763,-433.27840098,0.00034383,4]
[314902717,1708625555773,-500.0,0.00034383,4]
[314902718,1708625555782,-500.0,0.00034383,4]
[314902719,1708625555792,-2618.09,0.00034383,4]
[314902720,1708625555802,-571.38,0.00034383,4]
[314902721,1708625555811,-1754.26,0.00034383,4]
[314902722,1708625555821,-905.05,0.00034383,4]
[314902723,1708625555831,-1224.57,0.00034383,4]
[314902724,1708625555841,-1412.23,0.00034383,4]
[314902725,1708625555851,-1295.05,0.00034383,4]
[314902726,1708625555861,-2025.9,0.00034383,4]
[314902727,1708625555870,-734.04,0.00034383,4]
[314902728,1708625555881,-16810.08,0.00034383,4]
[314902729,1708625555891,-500.0,0.00034383,4]
[314902730,1708625555902,-3953.01,0.00034383,4]
[314902731,1708625555912,-1357.88,0.00034383,4]
[314902732,1708625555922,-500.0,0.00034383,4]
[314902733,1708625555931,-523.91,0.00034383,4]
[314902734,1708625555941,-500.0,0.00034383,4]
[314902735,1708625555951,-500.0,0.00034383,4]
[314902736,1708625555960,-1306.91,0.00034383,4]
[314902737,1708625555971,-1319.7,0.00034383,4]
[314902738,1708625555981,-2921.05,0.00034383,4]
[314902739,1708625555991,-3520.12,0.00034383,4]
[314902740,1708625556001,-1203.69,0.00034383,4]
[314902741,1708625556011,-4012.02,0.00034383,4]
[314902742,1708625556020,-7422.46,0.00034383,4]
[314902743,1708625556030,-2325.63,0.00034383,4]
[314902744,1708625556040,-595.22,0.00034383,4]
[314902745,1708625556049,-258.75518777,0.00034383,4]
[314902746,1708625556059,-578.71,0.00034383,4]
[314902747,1708625556070,-896.84,0.00034383,4]
[314902748,1708625556079,-500.0,0.00034383,4]
[314902749,1708625556089,-500.0,0.00034383,4]
[314902750,1708625556099,-579.72,0.00034383,4]
[314902751,1708625556108,-802.17,0.00034383,4]
[314902752,1708625556118,-999.86,0.00034383,4]
[314902753,1708625556128,-2641.23,0.00034383,4]
[314902754,1708625556138,-500.0,0.00034383,4]
[314902755,1708625556148,-3363.68,0.00034383,4]
[314902756,1708625556158,-2799.21,0.00034383,4]
[314902757,1708625556168,-500.0,0.00034383,4]
[314902758,1708625556177,-500.0,0.00034383,4]
[314902759,1708625556187,-522.87,0.00034383,4]
[314902760,1708625556197,-879.41,0.00034383,4]
[314902761,1708625556206,-922.6,0.00034383,4]
[314902762,1708625556217,-7827.29,0.00034383,4]
[314902763,1708625556227,-1225.83,0.00034383,4]
[314902764,1708625556237,-708.41,0.00034383,4]
[314902765,1708625556247,-4523.83,0.00034383,4]
[314902766,1708625556256,-1375.3,0.00034383,4]
[314902767,1708625556267,-4862.62,0.00034383,4]
[314902768,1708625556276,-735.21,0.00034383,4]
[314902769,1708625556286,-757.98,0.00034383,4]
[314902770,1708625556296,-346.61,0.00034383,4]
[314902771,1708625556306,-500.0,0.00034383,4]
[314902772,1708625556317,-3270.53,0.00034383,4]
[314902773,1708625556327,-876.68,0.00034383,4]
[314902774,1708625556336,-3006.31,0.00034383,4]
[314902775,1708625556346,-2130.22,0.00034383,4]
[314902776,1708625556356,-5087.25,0.00034383,4]
[314902777,1708625556366,-869.35,0.00034383,4]
[314902778,1708625556377,-500.0,0.00034383,4]
[314902779,1708625556387,-1701.19,0.00034383,4]
[314902780,1708625556397,-1542.31,0.00034383,4]
[314902781,1708625556408,-1144.38,0.00034383,4]
[314902782,1708625556418,-10191.48,0.00034383,4]
[314902783,1708625556428,-14297.7,0.00034383,4]
[314902784,1708625556438,-870.84,0.00034383,4]
[314902785,1708625556449,-1739.37,0.00034383,4]
[314902786,1708625556458,-500.0,0.00034383,4]
[314902787,1708625556469,-1219.49,0.00034383,4]
[314902788,1708625556479,-500.0,0.00034383,4]
[314902789,1708625556489,-662.36,0.00034383,4]
[314902790,1708625556499,-5320.7,0.00034383,4]
[314902791,1708625556509,-1389.1,0.00034383,4]
[314902792,1708625556519,-1178.0,0.00034383,4]
[314902793,1708625556529,-500.0,0.00034383,4]
[314902794,1708625556540,-4535.27,0.00034383,4]
[314902795,1708625556550,-1510.56,0.00034383,4]
[314902796,1708625556559,-574.08,0.00034383,4]
[314902797,1708625556569,-913.43,0.00034383,4]
[314902798,1708625556579,-957.57,0.00034383,4]
[314902799,1708625556590,-1132.71,0.00034383,4]
[314902800,1708625556600,-1840.14,0.00034383,4]
[314902801,1708625556610,-500.0,0.00034383,4]
[314902802,1708625556619,-500.0,0.00034383,4]
[314902803,1708625556629,-1105.16,0.00034383,4]
[314902804,1708625556639,-8688.16,0.00034383,4]
[314902805,1708625556649,-856.33,0.00034383,4]
[314902806,1708625556658,-1035.38,0.00034383,4]
[314902807,1708625556668,-500.0,0.00034383,4]
[314902808,1708625556678,-597.54,0.00034383,4]
[314902809,1708625556687,-425.21487166,0.00034383,4]
[314902810,1708625556697,-1031.07,0.00034383,4]
[314902811,1708625556707,-607.73,0.00034383,4]
[314902812,1708625556716,-4152.62,0.00034383,4]
[314902813,1708625556726,-4573.59,0.00034383,4]
[314902814,1708625556736,-5220.29,0.00034383,4]
[314902815,1708625556745,-1750.52,0.00034383,4]
[314902816,1708625556754,-500.0,0.00034383,4]
[314902817,1708625556764,-740.42,0.00034383,4]
[314902818,1708625556773,-543.8,0.00034383,4]
[314902819,1708625556782,-579.71,0.00034383,4]
[314902820,1708625556792,-27929.76,0.00034383,4]
[314902821,1708625556802,-500.0,0.00034383,4]
[314902822,1708625556811,-769.4,0.00034383,4]
[314902823,1708625556820,-500.0,0.00034383,4]
[314902824,1708625556830,-500.0,0.00034383,4]
[314902825,1708625556839,-3104.43,0.00034383,4]
[314902826,1708625556848,-763.62,0.00034383,4]
[314902827,1708625556858,-31733.49,0.00034383,4]
[314902828,1708625556867,-2557.13,0.00034383,4]
[314902829,1708625556877,-635.4,0.00034383,4]
[314902830,1708625556887,-2617.91,0.00034383,4]
[314902831,1708625556900,-10076.31,0.00034383,4]
[314902832,1708625556910,-1402.56,0.00034383,4]
[314902833,1708625556919,-500.0,0.00034383,4]
[314902834,1708625556929,-719.16,0.00034383,4]
[314902835,1708625556938,-549.71,0.00034383,4]
[314902836,1708625556948,-815.24,0.00034383,4]
[314902837,1708625556957,-540.22,0.00034383,4]
[314902838,1708625556967,-10365.29,0.00034383,4]
[314902839,1708625556977,-1908.5,0.00034383,4]
[314902840,1708625556988,-500.0,0.00034383,4]
[314902841,1708625556998,-1930.81,0.00034383,4]
[314902842,1708625557008,-4645.8,0.00034383,4]
[314902843,1708625557017,-1831.86,0.00034383,4]
[314902844,1708625557027,-1019.93,0.00034383,4]
[314902845,1708625557036,-500.0,0.00034383,4]
[314902846,1708625557046,-831.39,0.00034383,4]
[314902847,1708625557056,-1113.04,0.00034383,4]
[314902848,1708625557065,-2272.34,0.00034383,4]
[314902849,1708625557075,-703.63,0.00034383,4]
[314902850,1708625557085,-19048.88,0.00034383,4]
[314902851,1708625557094,-899.16,0.00034383,4]
[314902852,1708625557103,-1790.32,0.00034383,4]
[314902853,1708625557112,-3342.93,0.00034383,4]
[314902854,1708625557122,-6652.12,0.00034383,4]
[314902855,1708625557132,-1083.4,0.00034383,4]
[314902856,1708625557141,-500.0,0.00034383,4]
[314902857,1708625557151,-500.0,0.00034383,4]
[314902858,1708625557160,-612.06,0.00034383,4]
[314902859,1708625557170,-500.0,0.00034383,4]
[314902860,1708625557179,-566.02,0.00034383,4]
[314902861,1708625557189,-2397.11,0.00034383,4]
[314902862,1708625557199,-3448.92,0.00034383,4]
[314902863,1708625557208,-588.46,0.00034383,4]
[314902864,1708625557218,-668.81,0.00034383,4]
[314902865,1708625557227,-504.65,0.00034383,4]
[314902866,1708625557237,-890.14,0.00034383,4]
[314902867,1708625557248,-1569.54,0.00034383,4]
[314902868,1708625557257,-2839.46,0.00034383,4]
[314902869,1708625557266,-500.0,0.00034383,4]
[314902870,1708625557276,-1599.27,0.00034383,4]
[314902871,1708625557286,-12262.15,0.00034383,4]
[314902872,1708625557295,-500.0,0.00034383,4]
[314902873,1708625557304,-603.26,0.00034383,4]
[314902874,1708625557313,-4428.36,0.00034383,4]
[314902875,1708625557323,-684.48,0.00034383,4]
[314902876,1708625557333,-2710.14,0.00034383,4]
[314902877,1708625557343,-11511.86,0.00034383,4]
[314902878,1708625557353,-500.0,0.00034383,4]
[314902879,1708625557362,-13857.62,0.00034383,4]
[314902880,1708625557372,-1092.92,0.00034383,4]
[314902881,1708625557382,-500.0,0.00034383,4]
[314902882,1708625557391,-1594.69,0.00034383,4]
[314902883,1708625557401,-500.0,0.00034383,4]
[314902884,1708625557411,-935.58,0.00034383,4]
[314902885,1708625557421,-543.61,0.00034383,4]
[314902886,1708625557431,-787.78,0.00034383,4]
[314902887,1708625557441,-500.0,0.00034383,4]
[314902888,1708625557451,-500.0,0.00034383,4]
[314902889,1708625557460,-952.32,0.00034383,4]
[314902890,1708625557471,-12927.16,0.00034383,4]
[314902891,1708625557481,-15657.06,0.00034383,4]
[314902892,1708625557491,-1397.23,0.00034383,4]
[314902893,1708625557500,-734.09,0.00034383,4]
[314902894,1708625557510,-500.0,0.00034383,4]
[314902895,1708625557520,-500.0,0.00034383,4]
[314902896,1708625557530,-638.64,0.00034383,4]
[314902897,1708625557540,-500.0,0.00034383,4]
[314902898,1708625557549,-1622.99,0.00034383,4]
[314902899,1708625557558,-2266.68,0.00034383,4]
[314902900,1708625557567,-500.0,0.00034383,4]
[314902901,1708625557577,-2464.49,0.00034383,4]
[314902902,1708625557589,-1572.14,0.00034383,4]
[314902903,1708625557599,-500.0,0.00034383,4]
[314902904,1708625557609,-1658.88,0.00034383,4]
[314902905,1708625557618,-1524.56,0.00034383,4]
[314902906,1708625557628,-802.87,0.00034383,4]